[Event "Early-Titled-Tuesday-Blitz-April-23-2024"]
[Site "Chess.com"]
[Date "2024.04.23"]
[Round "7"]
[White "MFatigue"]
[Black "Doublekk14"]
[Result "1-0"]
[WhiteElo "2556"]
[BlackElo "2375"]
[TimeControl "180+1"]
[EndTime "9:22:13 PDT"]
[Termination "MFatigue won on time"]

1. e4 {[%clk 0:03:00.9]} 1... c5 {[%clk 0:02:58.6]} 2. a3 {[%clk 0:02:58.3]}
2... d5 {[%clk 0:02:55]} 3. exd5 {[%clk 0:02:55.4]} 3... Qxd5 {[%clk 0:02:54.6]}
4. Nc3 {[%clk 0:02:55.5]} 4... Qd8 {[%clk 0:02:52]} 5. Nf3 {[%clk 0:02:56.4]}
5... Nc6 {[%clk 0:02:51.8]} 6. Bb5 {[%clk 0:02:55.6]} 6... Bd7 {[%clk
0:02:51.2]} 7. Ne4 {[%clk 0:02:44.4]} 7... e6 {[%clk 0:02:50.1]} 8. O-O {[%clk
0:02:44.5]} 8... Nf6 {[%clk 0:02:48.9]} 9. d3 {[%clk 0:02:33.3]} 9... a6 {[%clk
0:02:48.2]} 10. Bxc6 {[%clk 0:02:28.6]} 10... Bxc6 {[%clk 0:02:48.1]} 11. Qe2
{[%clk 0:02:29.5]} 11... h6 {[%clk 0:02:43.6]} 12. Ne5 {[%clk 0:02:22.6]} 12...
Bxe4 {[%clk 0:02:42.5]} 13. dxe4 {[%clk 0:02:22.7]} 13... Bd6 {[%clk 0:02:39.8]}
14. Nc4 {[%clk 0:02:22]} 14... Bc7 {[%clk 0:02:33.5]} 15. Rd1 {[%clk 0:02:20.5]}
15... Qe7 {[%clk 0:02:30.9]} 16. a4 {[%clk 0:02:18.5]} 16... b6 {[%clk
0:02:24.8]} 17. Be3 {[%clk 0:01:38.2]} 17... O-O {[%clk 0:02:23.6]} 18. b4
{[%clk 0:01:37.7]} 18... Nxe4 {[%clk 0:02:15.2]} 19. Qf3 {[%clk 0:01:37.4]}
19... Nc3 {[%clk 0:01:59.9]} 20. Rd3 {[%clk 0:01:37.5]} 20... Nd5 {[%clk
0:01:59.9]} 21. bxc5 {[%clk 0:01:35.6]} 21... bxc5 {[%clk 0:01:51.4]} 22. Qg4
{[%clk 0:01:18]} 22... Qf6 {[%clk 0:01:43.6]} 23. Rf1 {[%clk 0:01:01.7]} 23...
Rad8 {[%clk 0:01:37.1]} 24. Bxc5 {[%clk 0:01:00.9]} 24... Rfe8 {[%clk
0:01:30.3]} 25. Rf3 {[%clk 0:01:00.9]} 25... Qg5 {[%clk 0:01:23.7]} 26. Qxg5
{[%clk 0:00:54.7]} 26... hxg5 {[%clk 0:01:23.8]} 27. Rb1 {[%clk 0:00:54.7]}
27... Rb8 {[%clk 0:01:20.8]} 28. Rfb3 {[%clk 0:00:55.2]} 28... Rxb3 {[%clk
0:01:11.9]} 29. cxb3 {[%clk 0:00:55.7]} 29... a5 {[%clk 0:01:01.2]} 30. Nd6
{[%clk 0:00:55.8]} 30... Bxd6 {[%clk 0:00:56]} 31. Bxd6 {[%clk 0:00:56.7]} 31...
Rc8 {[%clk 0:00:53.7]} 32. f3 {[%clk 0:00:46.2]} 32... Rc6 {[%clk 0:00:53.7]}
33. Bg3 {[%clk 0:00:46.4]} 33... Rb6 {[%clk 0:00:45.7]} 34. Be1 {[%clk
0:00:46.5]} 34... Nb4 {[%clk 0:00:42.5]} 35. Bxb4 {[%clk 0:00:35]} 35... Rxb4
{[%clk 0:00:41.5]} 36. Kf2 {[%clk 0:00:35.9]} 36... Kf8 {[%clk 0:00:40.8]} 37.
Ke3 {[%clk 0:00:36.6]} 37... Ke7 {[%clk 0:00:41]} 38. Kd3 {[%clk 0:00:37.3]}
38... g4 {[%clk 0:00:36.5]} 39. fxg4 {[%clk 0:00:23.4]} 39... Rxg4 {[%clk
0:00:36.5]} 40. g3 {[%clk 0:00:24]} 40... Rb4 {[%clk 0:00:36.7]} 41. Kc3 {[%clk
0:00:24.4]} 41... e5 {[%clk 0:00:34.3]} 42. Rd1 {[%clk 0:00:23.3]} 42... Ke6
{[%clk 0:00:30.3]} 43. Rd8 {[%clk 0:00:23.4]} 43... f5 {[%clk 0:00:18.4]} 44.
Ra8 {[%clk 0:00:23.8]} 44... f4 {[%clk 0:00:18.5]} 45. gxf4 {[%clk 0:00:20.9]}
45... exf4 {[%clk 0:00:18.5]} 46. Rxa5 {[%clk 0:00:17.7]} 46... f3 {[%clk
0:00:14.1]} 47. Ra6+ {[%clk 0:00:07.3]} 47... Ke7 {[%clk 0:00:10.8]} 48. Ra7+
{[%clk 0:00:07]} 48... Ke6 {[%clk 0:00:10.8]} 49. Ra6+ {[%clk 0:00:07.4]} 49...
Ke5 {[%clk 0:00:10.7]} 50. Ra5+ {[%clk 0:00:05.7]} 50... Ke4 {[%clk 0:00:10.5]}
51. Kxb4 {[%clk 0:00:02.9]} 51... f2 {[%clk 0:00:10.5]} 52. Ra8 {[%clk
0:00:02.7]} 52... f1=Q {[%clk 0:00:10.1]} 53. Re8+ {[%clk 0:00:03.4]} 53... Kd4
{[%clk 0:00:09.3]} 54. Rd8+ {[%clk 0:00:03.9]} 54... Ke5 {[%clk 0:00:09.4]} 55.
Re8+ {[%clk 0:00:04.4]} 55... Kd6 {[%clk 0:00:09.1]} 56. Rd8+ {[%clk 0:00:04.8]}
56... Kc7 {[%clk 0:00:09.2]} 57. Rd4 {[%clk 0:00:04.5]} 57... Qf8+ {[%clk
0:00:07.9]} 58. Kc3 {[%clk 0:00:03.9]} 58... Qf6 {[%clk 0:00:07.4]} 59. h4
{[%clk 0:00:03.4]} 59... Kb6 {[%clk 0:00:06]} 60. b4 {[%clk 0:00:03.3]} 60...
Kc6 {[%clk 0:00:05.4]} 61. Kc4 {[%clk 0:00:03.1]} 61... Qe6+ {[%clk 0:00:05.5]}
62. Kc3 {[%clk 0:00:03.5]} 62... Kb6 {[%clk 0:00:05.7]} 63. Rc4 {[%clk
0:00:01.8]} 63... Kb7 {[%clk 0:00:05.7]} 64. Kd3 {[%clk 0:00:01.9]} 64... Qd5+
{[%clk 0:00:05.5]} 65. Kc3 {[%clk 0:00:02.5]} 65... Qf3+ {[%clk 0:00:05.4]} 66.
Kc2 {[%clk 0:00:03.1]} 66... Qe2+ {[%clk 0:00:05.5]} 67. Kc3 {[%clk 0:00:03.7]}
67... Qe3+ {[%clk 0:00:05.7]} 68. Kc2 {[%clk 0:00:04.4]} 68... Qe8 {[%clk
0:00:05.5]} 69. a5 {[%clk 0:00:03.3]} 69... Qb5 {[%clk 0:00:04.9]} 70. Kc3
{[%clk 0:00:03.6]} 70... Qd7 {[%clk 0:00:03.7]} 71. Kb3 {[%clk 0:00:03.1]} 71...
Ka6 {[%clk 0:00:03.4]} 72. Rc5 {[%clk 0:00:02.6]} 72... Qd4 {[%clk 0:00:02.6]}
73. h5 {[%clk 0:00:02.3]} 73... Qd3+ {[%clk 0:00:02.9]} 74. Kb2 {[%clk
0:00:02.6]} 74... Qd2+ {[%clk 0:00:03]} 75. Kb3 {[%clk 0:00:03.2]} 75... Qe3+
{[%clk 0:00:03.2]} 76. Kc4 {[%clk 0:00:03.5]} 76... Qe7 {[%clk 0:00:03.2]} 77.
Kc3 {[%clk 0:00:04]} 77... Kb7 {[%clk 0:00:03.5]} 78. Rb5+ {[%clk 0:00:04.1]}
78... Kc6 {[%clk 0:00:03.4]} 79. Rb6+ {[%clk 0:00:04.6]} 79... Kd5 {[%clk
0:00:03.5]} 80. Kb3 {[%clk 0:00:04.3]} 80... Ke4 {[%clk 0:00:03]} 81. a6 {[%clk
0:00:03.7]} 81... Qf7+ {[%clk 0:00:02.4]} 82. Ka4 {[%clk 0:00:03.9]} 82... Qxh5
{[%clk 0:00:02.5]} 83. a7 {[%clk 0:00:02.1]} 83... Qe8+ {[%clk 0:00:02.5]} 84.
b5 {[%clk 0:00:01.3]} 84... g5 {[%clk 0:00:02.1]} 85. Rb8 {[%clk 0:00:01.5]} 1-0

[Event "Early-Titled-Tuesday-Blitz-April-23-2024"]
[Site "Chess.com"]
[Date "2024.04.23"]
[Round "7"]
[White "EddieMarsalla"]
[Black "PeshkaCh"]
[Result "1-0"]
[WhiteElo "2668"]
[BlackElo "2869"]
[TimeControl "180+1"]
[EndTime "9:22:39 PDT"]
[Termination "EddieMarsalla won by checkmate"]

1. d4 {[%clk 0:03:00.9]} 1... Nf6 {[%clk 0:02:59.8]} 2. Bf4 {[%clk 0:03:00.4]}
2... c5 {[%clk 0:02:59.6]} 3. e3 {[%clk 0:03:00.2]} 3... b6 {[%clk 0:02:57.7]}
4. c3 {[%clk 0:03:00]} 4... Bb7 {[%clk 0:02:58.2]} 5. Nd2 {[%clk 0:03:00.2]}
5... d6 {[%clk 0:02:58.3]} 6. Ngf3 {[%clk 0:02:58.9]} 6... Nbd7 {[%clk
0:02:58.8]} 7. Bc4 {[%clk 0:02:57.3]} 7... g6 {[%clk 0:02:59.3]} 8. O-O {[%clk
0:02:57.5]} 8... Bg7 {[%clk 0:02:59.5]} 9. Qe2 {[%clk 0:02:57.8]} 9... O-O
{[%clk 0:02:59.9]} 10. h3 {[%clk 0:02:58.1]} 10... a6 {[%clk 0:02:59.7]} 11. a4
{[%clk 0:02:57.3]} 11... Qc7 {[%clk 0:03:00.3]} 12. Rfe1 {[%clk 0:02:56.2]}
12... e5 {[%clk 0:02:39.9]} 13. dxe5 {[%clk 0:02:55.5]} 13... Nxe5 {[%clk
0:02:40.8]} 14. Nxe5 {[%clk 0:02:46.4]} 14... dxe5 {[%clk 0:02:41.7]} 15. Bh2
{[%clk 0:02:45.3]} 15... Nd7 {[%clk 0:02:40.8]} 16. Rad1 {[%clk 0:02:40.9]}
16... h6 {[%clk 0:02:31.6]} 17. Qg4 {[%clk 0:02:30.2]} 17... Kh7 {[%clk
0:02:15.3]} 18. e4 {[%clk 0:01:44.9]} 18... Nf6 {[%clk 0:02:09.1]} 19. Qe2
{[%clk 0:01:33.7]} 19... Rfd8 {[%clk 0:02:05.5]} 20. f3 {[%clk 0:01:31.9]} 20...
Nh5 {[%clk 0:01:59.6]} 21. Nf1 {[%clk 0:01:28.1]} 21... Bc6 {[%clk 0:01:58.4]}
22. b3 {[%clk 0:01:23]} 22... Nf4 {[%clk 0:01:54.1]} 23. Bxf4 {[%clk 0:01:19.7]}
23... exf4 {[%clk 0:01:55]} 24. Bxa6 {[%clk 0:01:15.7]} 24... Bxc3 {[%clk
0:01:53.3]} 25. Rxd8 {[%clk 0:01:13.5]} 25... Rxd8 {[%clk 0:01:43.2]} 26. Rd1
{[%clk 0:01:13.4]} 26... Bd4+ {[%clk 0:01:27.9]} 27. Kh1 {[%clk 0:01:13.6]}
27... Qe5 {[%clk 0:01:26]} 28. Bb5 {[%clk 0:01:02]} 28... Bb7 {[%clk 0:01:25.1]}
29. Ba6 {[%clk 0:01:00.9]} 29... Ba8 {[%clk 0:01:24.9]} 30. Nd2 {[%clk 0:00:58]}
30... Qh5 {[%clk 0:01:01.7]} 31. Nc4 {[%clk 0:00:53.7]} 31... Rb8 {[%clk
0:00:47.6]} 32. Qd2 {[%clk 0:00:40.9]} 32... Qg5 {[%clk 0:00:43.4]} 33. Nd6
{[%clk 0:00:38.8]} 33... Qf6 {[%clk 0:00:22.4]} 34. Nc4 {[%clk 0:00:24.2]} 34...
Bc6 {[%clk 0:00:21.7]} 35. Qe2 {[%clk 0:00:22.8]} 35... Qh4 {[%clk 0:00:17.7]}
36. Nd6 {[%clk 0:00:19.9]} 36... Bd7 {[%clk 0:00:16.9]} 37. Qf1 {[%clk
0:00:16.4]} 37... Qf6 {[%clk 0:00:11.8]} 38. Nb5 {[%clk 0:00:16]} 38... Bxb5
{[%clk 0:00:12.3]} 39. Bxb5 {[%clk 0:00:16.2]} 39... h5 {[%clk 0:00:12.3]} 40.
Qc4 {[%clk 0:00:14.9]} 40... Kg7 {[%clk 0:00:11.3]} 41. Qd5 {[%clk 0:00:14.8]}
41... Rd8 {[%clk 0:00:10.9]} 42. Qc6 {[%clk 0:00:15.2]} 42... Rd6 {[%clk
0:00:11.5]} 43. Qc7 {[%clk 0:00:15.5]} 43... g5 {[%clk 0:00:03.9]} 44. Bc4
{[%clk 0:00:15.5]} 44... g4 {[%clk 0:00:03.6]} 45. Bxf7 {[%clk 0:00:14.5]} 45...
Kh6 {[%clk 0:00:04]} 46. Bd5 {[%clk 0:00:14.1]} 46... gxf3 {[%clk 0:00:03.4]}
47. gxf3 {[%clk 0:00:14.4]} 47... Rxd5 {[%clk 0:00:02.4]} 48. exd5 {[%clk
0:00:14]} 48... Qh4 {[%clk 0:00:03]} 49. Qd6+ {[%clk 0:00:13.4]} 49... Kh7
{[%clk 0:00:03.5]} 50. Qd7+ {[%clk 0:00:13.6]} 50... Kh8 {[%clk 0:00:03.5]} 51.
Qe8+ {[%clk 0:00:12.4]} 51... Kh7 {[%clk 0:00:03.2]} 52. Qf7+ {[%clk 0:00:12.9]}
52... Kh8 {[%clk 0:00:03.6]} 53. Qf8+ {[%clk 0:00:13.3]} 53... Kh7 {[%clk
0:00:04.2]} 54. Qf5+ {[%clk 0:00:14.2]} 54... Kh8 {[%clk 0:00:04.2]} 55. d6
{[%clk 0:00:11.8]} 55... Qf2 {[%clk 0:00:02.3]} 56. Qxh5+ {[%clk 0:00:09.8]}
56... Kg7 {[%clk 0:00:03]} 57. Qg4+ {[%clk 0:00:09.8]} 57... Kh7 {[%clk
0:00:01.9]} 58. d7 {[%clk 0:00:10.3]} 58... Qe2 {[%clk 0:00:02.4]} 59. Qf5+
{[%clk 0:00:09.6]} 59... Kg7 {[%clk 0:00:01.6]} 60. Qg5+ {[%clk 0:00:09.2]}
60... Kh7 {[%clk 0:00:01.8]} 61. Qh5+ {[%clk 0:00:09.3]} 61... Kg7 {[%clk
0:00:02.1]} 62. Rg1+ {[%clk 0:00:05]} 62... Bxg1 {[%clk 0:00:02.1]} 63. Qg5+
{[%clk 0:00:05.5]} 63... Kh7 {[%clk 0:00:02.6]} 64. Qf5+ {[%clk 0:00:05.4]}
64... Kg7 {[%clk 0:00:02.8]} 65. Qg4+ {[%clk 0:00:05.7]} 65... Kh7 {[%clk
0:00:03]} 66. Qh4+ {[%clk 0:00:06]} 66... Kg7 {[%clk 0:00:03.3]} 67. Qg4+ {[%clk
0:00:06.6]} 67... Kh7 {[%clk 0:00:03.5]} 68. Kxg1 {[%clk 0:00:07.2]} 68... Qe1+
{[%clk 0:00:02.7]} 69. Kh2 {[%clk 0:00:07.8]} 69... Qd2+ {[%clk 0:00:02.9]} 70.
Qg2 {[%clk 0:00:08.3]} 70... Qxd7 {[%clk 0:00:03.2]} 71. Qc2+ {[%clk 0:00:09]}
71... Kh8 {[%clk 0:00:03]} 72. Qf2 {[%clk 0:00:09.9]} 72... Qd3 {[%clk
0:00:02.9]} 73. Qh4+ {[%clk 0:00:10]} 73... Kg8 {[%clk 0:00:03.3]} 74. Qxf4
{[%clk 0:00:10.9]} 74... Qxb3 {[%clk 0:00:03.9]} 75. Qg4+ {[%clk 0:00:11.1]}
75... Kf8 {[%clk 0:00:03.6]} 76. Qf4+ {[%clk 0:00:11.2]} 76... Kg8 {[%clk
0:00:03.3]} 77. h4 {[%clk 0:00:12.1]} 77... c4 {[%clk 0:00:03.3]} 78. Qg5+
{[%clk 0:00:12.7]} 78... Kf8 {[%clk 0:00:03.3]} 79. Qf5+ {[%clk 0:00:12.9]}
79... Kg8 {[%clk 0:00:03.3]} 80. Qd5+ {[%clk 0:00:13.5]} 80... Kf8 {[%clk
0:00:03.6]} 81. Qf5+ {[%clk 0:00:14]} 81... Kg8 {[%clk 0:00:03.4]} 82. Qe6+
{[%clk 0:00:14.5]} 82... Kf8 {[%clk 0:00:03.8]} 83. h5 {[%clk 0:00:14.9]} 83...
Qb2+ {[%clk 0:00:03.2]} 84. Kg3 {[%clk 0:00:15]} 84... c3 {[%clk 0:00:02.6]} 85.
Qf6+ {[%clk 0:00:15.4]} 85... Ke8 {[%clk 0:00:03.1]} 86. h6 {[%clk 0:00:16]}
86... Qc2 {[%clk 0:00:02.3]} 87. Qe6+ {[%clk 0:00:16.2]} 87... Kf8 {[%clk
0:00:02.3]} 88. Qf6+ {[%clk 0:00:16.3]} 88... Ke8 {[%clk 0:00:02.8]} 89. Qe5+
{[%clk 0:00:15.5]} 89... Kd8 {[%clk 0:00:02.7]} 90. Qd4+ {[%clk 0:00:15.3]}
90... Ke8 {[%clk 0:00:02.5]} 91. Qh8+ {[%clk 0:00:15.1]} 91... Kd7 {[%clk
0:00:02.2]} 92. Qg7+ {[%clk 0:00:16]} 92... Kc6 {[%clk 0:00:02.7]} 93. h7 {[%clk
0:00:15.5]} 93... Qc1 {[%clk 0:00:03.1]} 94. Qf6+ {[%clk 0:00:14.3]} 94... Kb7
{[%clk 0:00:02.6]} 95. h8=Q {[%clk 0:00:14.8]} 95... Qg1+ {[%clk 0:00:02.3]} 96.
Kf4 {[%clk 0:00:15.4]} 96... c2 {[%clk 0:00:03]} 97. Qhg7+ {[%clk 0:00:14.4]}
97... Ka6 {[%clk 0:00:01.6]} 98. Qxg1 {[%clk 0:00:14]} 98... c1=Q+ {[%clk
0:00:01.7]} 99. Qxc1 {[%clk 0:00:13.4]} 99... Ka5 {[%clk 0:00:02.6]} 100. Qd2+
{[%clk 0:00:10.9]} 100... Kxa4 {[%clk 0:00:02.6]} 101. Qfd4+ {[%clk 0:00:11.4]}
101... Kb5 {[%clk 0:00:02.5]} 102. Q2b4+ {[%clk 0:00:11.7]} 102... Kc6 {[%clk
0:00:03.1]} 103. Qbxb6# {[%clk 0:00:12.5]} 1-0

[Event "Early-Titled-Tuesday-Blitz-April-23-2024"]
[Site "Chess.com"]
[Date "2024.04.23"]
[Round "7"]
[White "Elegance_Riks"]
[Black "Zhigalko_Sergei"]
[Result "1/2-1/2"]
[WhiteElo "2790"]
[BlackElo "2931"]
[TimeControl "180+1"]
[EndTime "9:23:06 PDT"]
[Termination "Game drawn by repetition"]

1. e4 {[%clk 0:03:00.9]} 1... c5 {[%clk 0:03:00.2]} 2. c3 {[%clk 0:03:00.1]}
2... Nf6 {[%clk 0:03:00.4]} 3. e5 {[%clk 0:03:00.3]} 3... Nd5 {[%clk 0:03:01]}
4. Nf3 {[%clk 0:03:00.7]} 4... Nc6 {[%clk 0:03:01.3]} 5. d4 {[%clk 0:03:01]}
5... cxd4 {[%clk 0:03:01.8]} 6. cxd4 {[%clk 0:03:01.6]} 6... d6 {[%clk
0:03:02.2]} 7. Bc4 {[%clk 0:03:00.9]} 7... Nb6 {[%clk 0:03:02.5]} 8. Bb5 {[%clk
0:02:57.9]} 8... d5 {[%clk 0:03:02.5]} 9. O-O {[%clk 0:02:53.7]} 9... Bf5 {[%clk
0:02:56.4]} 10. Nc3 {[%clk 0:02:48.3]} 10... e6 {[%clk 0:02:56.6]} 11. Bg5
{[%clk 0:02:34.4]} 11... Be7 {[%clk 0:02:56.6]} 12. Bxe7 {[%clk 0:02:32.9]}
12... Qxe7 {[%clk 0:02:57.5]} 13. Bxc6+ {[%clk 0:02:27]} 13... bxc6 {[%clk
0:02:57.6]} 14. Rc1 {[%clk 0:02:27.2]} 14... O-O {[%clk 0:02:51.7]} 15. a3
{[%clk 0:02:07.3]} 15... Nc4 {[%clk 0:02:45.6]} 16. Na4 {[%clk 0:01:54.9]} 16...
Bg4 {[%clk 0:02:35.3]} 17. Re1 {[%clk 0:01:32.6]} 17... Rab8 {[%clk 0:02:33.5]}
18. b3 {[%clk 0:01:30]} 18... Bxf3 {[%clk 0:02:21.3]} 19. Qxf3 {[%clk
0:01:24.8]} 19... Qxa3 {[%clk 0:02:18.6]} 20. Nc5 {[%clk 0:00:50.5]} 20... Nd2
{[%clk 0:01:53.4]} 21. Qe3 {[%clk 0:00:49.2]} 21... Ne4 {[%clk 0:01:18]} 22.
Nxe4 {[%clk 0:00:41.1]} 22... dxe4 {[%clk 0:01:18.9]} 23. Qxe4 {[%clk
0:00:40.7]} 23... Qxb3 {[%clk 0:01:07.4]} 24. Rxc6 {[%clk 0:00:34.7]} 24... a5
{[%clk 0:00:31.5]} 25. h4 {[%clk 0:00:29.7]} 25... Rfd8 {[%clk 0:00:20.8]} 26.
Rc7 {[%clk 0:00:25.6]} 26... Qb6 {[%clk 0:00:20.9]} 27. Rec1 {[%clk 0:00:23.8]}
27... Rxd4 {[%clk 0:00:06.8]} 28. Qf3 {[%clk 0:00:23.4]} 28... Rf8 {[%clk
0:00:05.9]} 29. h5 {[%clk 0:00:23.7]} 29... h6 {[%clk 0:00:05.7]} 30. Rb7 {[%clk
0:00:18.3]} 30... Qd8 {[%clk 0:00:04.7]} 31. g3 {[%clk 0:00:16.3]} 31... Rd3
{[%clk 0:00:03.8]} 32. Qe4 {[%clk 0:00:14.5]} 32... Qd5 {[%clk 0:00:04.4]} 33.
Qxd5 {[%clk 0:00:13.6]} 33... Rxd5 {[%clk 0:00:05.3]} 34. Re1 {[%clk 0:00:12.9]}
34... Ra8 {[%clk 0:00:04.7]} 35. Re4 {[%clk 0:00:12.1]} 35... a4 {[%clk
0:00:04.5]} 36. Rf4 {[%clk 0:00:12.6]} 36... Rxe5 {[%clk 0:00:02.8]} 37. Rfxf7
{[%clk 0:00:12.9]} 37... Rg5 {[%clk 0:00:03.4]} 38. Ra7 {[%clk 0:00:13.4]} 38...
Rxa7 {[%clk 0:00:02.2]} 39. Rxa7 {[%clk 0:00:13.6]} 39... Rg4 {[%clk 0:00:02.7]}
40. Kg2 {[%clk 0:00:11.6]} 40... Rb4 {[%clk 0:00:02.9]} 41. f4 {[%clk 0:00:12]}
41... Rb2+ {[%clk 0:00:02.4]} 42. Kf3 {[%clk 0:00:12.4]} 42... Ra2 {[%clk
0:00:03.3]} 43. Kg4 {[%clk 0:00:12.8]} 43... a3 {[%clk 0:00:03.2]} 44. Kh4
{[%clk 0:00:12.7]} 44... Ra1 {[%clk 0:00:03.3]} 45. Kg4 {[%clk 0:00:13.4]} 45...
a2 {[%clk 0:00:03.4]} 46. Ra8+ {[%clk 0:00:13.5]} 46... Kh7 {[%clk 0:00:03.7]}
47. Ra7 {[%clk 0:00:13.7]} 47... Kg8 {[%clk 0:00:04.2]} 48. Ra6 {[%clk
0:00:13.8]} 48... Kf7 {[%clk 0:00:04.5]} 49. Ra7+ {[%clk 0:00:14.4]} 49... Ke8
{[%clk 0:00:04.4]} 50. Ra8+ {[%clk 0:00:14.3]} 50... Kd7 {[%clk 0:00:04.8]} 51.
Ra7+ {[%clk 0:00:15]} 51... Kc6 {[%clk 0:00:05.3]} 52. Ra8 {[%clk 0:00:15.6]}
52... Kb5 {[%clk 0:00:05.7]} 53. Ra7 {[%clk 0:00:15.6]} 53... Kc4 {[%clk
0:00:06]} 54. Ra8 {[%clk 0:00:15.6]} 54... Kb3 {[%clk 0:00:06.4]} 55. Rb8+
{[%clk 0:00:16.1]} 55... Kc3 {[%clk 0:00:07]} 56. Rc8+ {[%clk 0:00:16.7]} 56...
Kd4 {[%clk 0:00:07.4]} 57. Ra8 {[%clk 0:00:17.3]} 57... Ke3 {[%clk 0:00:07.7]}
58. Ra7 {[%clk 0:00:17.2]} 58... Kd4 {[%clk 0:00:07.4]} 59. Ra8 {[%clk
0:00:17.6]} 59... Kd5 {[%clk 0:00:07.3]} 60. Rd8+ {[%clk 0:00:17.6]} 60... Kc6
{[%clk 0:00:07.3]} 61. Ra8 {[%clk 0:00:18.3]} 61... Kd6 {[%clk 0:00:07.3]} 62.
Ra7 {[%clk 0:00:18.5]} 62... e5 {[%clk 0:00:07]} 63. Ra6+ {[%clk 0:00:18.8]}
63... Kd5 {[%clk 0:00:05.9]} 64. Ra5+ {[%clk 0:00:19.4]} 64... Kd6 {[%clk
0:00:03.5]} 65. fxe5+ {[%clk 0:00:19.7]} 65... Ke6 {[%clk 0:00:04.1]} 66. Ra7
{[%clk 0:00:19.1]} 66... Kxe5 {[%clk 0:00:04.3]} 67. Ra8 {[%clk 0:00:19.7]}
67... Ke4 {[%clk 0:00:04.1]} 68. Ra7 {[%clk 0:00:20.2]} 68... Kd3 {[%clk
0:00:04.2]} 69. Ra8 {[%clk 0:00:20.5]} 69... Kc4 {[%clk 0:00:04.6]} 70. Rc8+
{[%clk 0:00:20.9]} 70... Kb3 {[%clk 0:00:04.9]} 71. Rb8+ {[%clk 0:00:21.5]}
71... Kc3 {[%clk 0:00:05.3]} 72. Rc8+ {[%clk 0:00:22]} 72... Kd3 {[%clk
0:00:05.7]} 73. Ra8 {[%clk 0:00:22.3]} 73... Ke3 {[%clk 0:00:05.9]} 74. Ra7
{[%clk 0:00:22.2]} 74... Kf2 {[%clk 0:00:05.6]} 75. Ra8 {[%clk 0:00:22.1]} 75...
Kg2 {[%clk 0:00:05.5]} 76. Ra7 {[%clk 0:00:22.5]} 76... Kf2 {[%clk 0:00:05.6]}
77. Ra8 {[%clk 0:00:22.9]} 77... Ke3 {[%clk 0:00:06.1]} 78. Ra7 {[%clk
0:00:23.5]} 78... Ke4 {[%clk 0:00:06.2]} 79. Ra8 {[%clk 0:00:24]} 79... Ke5
{[%clk 0:00:06.3]} 80. Ra7 {[%clk 0:00:24.6]} 80... Ke6 {[%clk 0:00:06.3]} 81.
Ra8 {[%clk 0:00:25.2]} 81... Kf7 {[%clk 0:00:05.6]} 82. Ra7+ {[%clk 0:00:25.7]}
82... Kf6 {[%clk 0:00:06.1]} 83. Ra8 {[%clk 0:00:26.2]} 83... g5 {[%clk
0:00:04.5]} 84. Ra6+ {[%clk 0:00:26.5]} 84... Ke5 {[%clk 0:00:04.7]} 85. Ra5+
{[%clk 0:00:27]} 85... Kd4 {[%clk 0:00:05]} 86. Ra8 {[%clk 0:00:27.2]} 86... Ke4
{[%clk 0:00:05.3]} 87. Ra7 {[%clk 0:00:27.2]} 87... Ke3 {[%clk 0:00:05.6]} 88.
Ra8 {[%clk 0:00:27.4]} 88... Kf2 {[%clk 0:00:05.6]} 89. Ra7 {[%clk 0:00:27.4]}
89... Kg2 {[%clk 0:00:05.8]} 90. Ra8 {[%clk 0:00:27.8]} 90... Kf1 {[%clk
0:00:05.7]} 91. Ra7 {[%clk 0:00:28.2]} 91... Ke2 {[%clk 0:00:06.1]} 92. Ra8
{[%clk 0:00:28.6]} 92... Kd1 {[%clk 0:00:06.5]} 93. Ra7 {[%clk 0:00:29.2]} 93...
Kc2 {[%clk 0:00:06.8]} 94. Rc7+ {[%clk 0:00:29.2]} 94... Kb3 {[%clk 0:00:07]}
95. Rb7+ {[%clk 0:00:29.7]} 95... Kc4 {[%clk 0:00:07.5]} 96. Rc7+ {[%clk
0:00:30.2]} 96... Kb5 {[%clk 0:00:07.9]} 97. Ra7 {[%clk 0:00:30.7]} 97... Kb6
{[%clk 0:00:07.6]} 98. Ra8 {[%clk 0:00:31.2]} 98... Kb7 {[%clk 0:00:07.9]} 99.
Ra5 {[%clk 0:00:31.2]} 99... Kc6 {[%clk 0:00:07.9]} 100. Ra8 {[%clk 0:00:31.5]}
100... Kd6 {[%clk 0:00:07.9]} 101. Ra7 {[%clk 0:00:31.5]} 101... Ke6 {[%clk
0:00:07.3]} 102. Ra8 {[%clk 0:00:31.8]} 102... Ke5 {[%clk 0:00:04.1]} 103. Ra5+
{[%clk 0:00:31.9]} 103... Kf6 {[%clk 0:00:04.3]} 104. Ra6+ {[%clk 0:00:32.2]}
104... Kf7 {[%clk 0:00:04.2]} 105. Ra7+ {[%clk 0:00:32.6]} 105... Ke6 {[%clk
0:00:04.4]} 106. Ra6+ {[%clk 0:00:33.1]} 106... Kd5 {[%clk 0:00:04.7]} 107. Ra8
{[%clk 0:00:33.4]} 107... Ke4 {[%clk 0:00:05]} 108. Ra4+ {[%clk 0:00:32.1]}
108... Kd3 {[%clk 0:00:05.3]} 109. Ra8 {[%clk 0:00:32.9]} 109... Kc2 {[%clk
0:00:05.8]} 110. Rc8+ {[%clk 0:00:33.3]} 110... Kb2 {[%clk 0:00:05.4]} 111. Rb8+
{[%clk 0:00:33.9]} 111... Kc3 {[%clk 0:00:05.5]} 112. Rc8+ {[%clk 0:00:34.4]}
112... Kb3 {[%clk 0:00:06]} 113. Rb8+ {[%clk 0:00:35]} 113... Kc4 {[%clk
0:00:06.4]} 114. Rc8+ {[%clk 0:00:35.6]} 114... Kb5 {[%clk 0:00:06.6]} 115. Rb8+
{[%clk 0:00:36]} 115... Kc6 {[%clk 0:00:06.7]} 116. Ra8 {[%clk 0:00:36.5]}
116... Kb7 {[%clk 0:00:07.3]} 117. Ra5 {[%clk 0:00:36.4]} 117... Kb6 {[%clk
0:00:07.8]} 118. Ra8 {[%clk 0:00:36.7]} 118... Kb5 {[%clk 0:00:08.3]} 119. Rb8+
{[%clk 0:00:36.5]} 119... Ka4 {[%clk 0:00:08.4]} 120. Ra8+ {[%clk 0:00:36.8]}
120... Kb3 {[%clk 0:00:08.8]} 121. Rb8+ {[%clk 0:00:37.4]} 121... Kc2 {[%clk
0:00:09.2]} 122. Rc8+ {[%clk 0:00:38]} 122... Kb2 {[%clk 0:00:09.2]} 123. Rb8+
{[%clk 0:00:38.5]} 123... Kc1 {[%clk 0:00:08.6]} 124. Rc8+ {[%clk 0:00:38.7]}
124... Kb1 {[%clk 0:00:07.7]} 125. Rb8+ {[%clk 0:00:39.1]} 125... Kc2 {[%clk
0:00:07.9]} 126. Rc8+ {[%clk 0:00:39.7]} 1/2-1/2